bitfinex/quotes_ETHUSD_20250730
["timestamp","ask_amount","ask_price","bid_price","bid_amount"]
[1753878918368,0.829,3777.9,3777.7,0.001]
[1753878918570,3.47597705,3777.9,3777.7,0.001]
[1753878918770,4.29,3777.8,3777.7,0.001]
[1753878919070,0.829,3777.9,3777.7,0.001]
[1753878919287,4.29,3777.8,3777.7,2.64811332]
[1753878919487,4.29,3778.1,3778.0,2.64690312]
[1753878920400,4.289,3778.2,3777.7,0.53317819]
[1753878920586,4.289,3778.2,3777.7,0.001]
[1753878920768,4.289,3778.2,3777.7,2.64810622]
[1753878920969,4.289,3778.2,3777.7,0.001]
[1753878921164,2.64684643,3778.1,3777.7,0.001]
[1753878921483,0.7614,3778.0,3777.7,0.001]
[1753878921665,4.289,3777.9,3777.7,0.001]
[1753878921985,4.289,3777.9,3777.8,2.64704325]
[1753878922186,4.289,3777.9,3777.7,0.001]
[1753878922787,2.64704325,3777.8,3777.7,0.001]
[1753878922976,6.93600017,3777.9,3777.7,0.001]
[1753878923604,2.64704325,3777.8,3777.7,0.001]
[1753878923780,3.6830985,3777.8,3777.7,0.001]
[1753878923966,4.5057985,3777.8,3777.7,0.001]
[1753878924563,7.5057985,3777.8,3777.7,0.001]
[1753878924763,7.75352175,3777.8,3777.7,0.001]
[1753878925878,7.5057985,3777.8,3777.7,0.001]
[1753878927007,7.90207243,3777.8,3777.7,0.001]
[1753878927211,7.5057985,3777.8,3777.7,0.001]
[1753878928497,2.64732355,3777.4,3777.3,0.001]
[1753878928683,11.57738004,3777.4,3777.3,0.001]
[1753878928883,12.49178004,3777.4,3777.3,0.001]
[1753878929132,12.88810128,3777.4,3777.3,0.001]
[1753878929432,13.09035369,3777.4,3777.3,0.001]
[1753878929916,5.64746372,3777.2,3777.1,0.04]
[1753878930091,11.38162368,3777.2,3777.1,0.04]
[1753878930289,12.04838496,3777.2,3777.1,0.04]
[1753878930598,12.29555755,3777.2,3777.1,0.04]
[1753878930798,12.04805958,3777.2,3777.1,0.04]
[1753878931009,12.04805958,3777.2,3776.1,0.04]
[1753878931010,3.41066482,3776.2,3776.1,0.04]
[1753878931215,10.69666482,3776.2,3776.1,0.04]
[1753878931525,11.61106482,3776.2,3776.1,0.04]
[1753878931927,11.74695606,3776.2,3776.1,0.04]
[1753878932095,12.57641255,3776.2,3776.1,0.04]
[1753878932519,12.44052131,3776.2,3776.1,0.04]
[1753878933058,5.0465,3776.2,3776.1,0.04]
[1753878933561,4.284,3776.2,3776.1,0.04]
[1753878933695,6.93216482,3776.2,3776.1,0.04]
[1753878933899,7.84656482,3776.2,3776.1,0.04]
[1753878934545,8.64596482,3776.2,3776.1,0.04]
[1753878934757,9.77536407,3776.2,3776.1,0.04]
[1753878934901,4.284,3776.2,3776.1,0.04]
[1753878935300,0.805,3776.5,3776.1,0.04]
[1753878935505,3.0,3776.9,3776.2,2.64816482]
[1753878935506,4.284,3776.4,3776.2,2.64816482]
[1753878935699,4.284,3776.4,3776.3,0.4535]
[1753878935922,4.284,3776.4,3776.3,3.10159469]
[1753878936120,0.7798,3777.4,3776.3,1.38569204]
[1753878936316,0.7798,3777.4,3776.4,0.4535]
[1753878936317,2.64746372,3777.2,3776.4,0.4535]
[1753878936514,2.64746372,3777.2,3776.1,0.04]
[1753878936515,2.64776762,3776.8,3776.1,0.04]
[1753878936749,0.8047,3776.6,3776.1,0.04]
[1753878936954,4.283,3776.5,3776.1,0.04]
[1753878937139,2.64816482,3776.2,3776.1,0.04]
[1753878937455,4.283,3776.2,3776.1,0.04]
[1753878938216,7.39756482,3776.2,3776.1,0.04]
[1753878938442,8.44692444,3776.2,3776.1,0.04]
[1753878938615,9.72382444,3776.2,3776.1,0.04]
[1753878938816,12.72382444,3776.2,3776.1,0.04]
[1753878939863,8.44082444,3776.2,3776.1,0.04]
[1753878940009,12.72382444,3776.2,3776.1,0.04]
[1753878945920,12.72382444,3776.2,3776.1,0.041]
[1753878946121,12.72382444,3776.2,3776.1,1e-08]
[1753878947131,7.52642444,3776.2,3776.1,1e-08]
[1753878947355,11.80642444,3776.2,3776.1,1e-08]
[1753878947575,12.73072444,3776.2,3776.1,1e-08]
[1753878948245,3.4301558,3775.5,3775.4,0.001]
[1753878948574,10.7091558,3775.5,3775.4,0.001]
[1753878948936,11.6334558,3775.5,3775.4,0.001]
[1753878950530,7.3544558,3775.5,3775.4,0.001]
[1753878950758,4.279,3775.5,3775.4,0.001]
[1753878950948,6.9276558,3775.5,3775.4,0.7741]
[1753878951130,6.9276558,3775.5,3775.4,0.453]
[1753878951628,6.9276558,3775.5,3775.4,0.001]
[1753878951836,12.62457335,3775.5,3775.4,0.001]
[1753878953255,12.62457335,3775.5,3775.1,1e-08]
[1753878953256,2.64886628,3775.2,3775.1,1e-08]
[1753878953568,3.41423645,3775.1,3775.0,1e-08]
[1753878953870,4.33853645,3775.1,3775.0,1e-08]
[1753878954042,5.45613269,3775.1,3775.0,1e-08]
[1753878954244,4.53183269,3775.1,3775.0,1e-08]
[1753878954445,7.53183269,3775.1,3775.0,1e-08]
[1753878954766,4.277,3775.1,3775.0,0.77310001]
[1753878955066,4.277,3775.1,3775.0,0.45200001]
[1753878955572,4.277,3775.1,3775.0,1e-08]
[1753878956335,11.27793645,3775.1,3775.0,1e-08]
[1753878956967,0.766,3775.3,3775.0,1e-08]
[1753878957167,2.64893645,3775.1,3775.0,1e-08]
[1753878957373,1.2591,3775.8,3775.0,1e-08]
[1753878957670,2.64877844,3775.4,3775.0,0.45200001]
[1753878957869,4.276,3775.3,3775.0,0.45200001]
[1753878958041,6.92480682,3775.3,3775.0,0.45200001]
[1753878958543,4.276,3775.3,3775.0,0.45200001]
[1753878958946,0.16878,3775.7,3775.0,1e-08]
[1753878959225,4.67238745,3775.6,3775.1,0.452]
[1753878959383,4.276,3775.6,3775.1,0.452]
[1753878959538,4.276,3775.6,3775.2,0.452]
[1753878959900,4.276,3775.6,3775.0,1e-08]
[1753878959901,0.765,3775.4,3775.0,1e-08]
[1753878960094,2.64893645,3775.1,3775.0,1e-08]
[1753878960238,6.92393645,3775.1,3775.0,1e-08]
[1753878960750,11.66253645,3775.1,3775.0,1e-08]
[1753878961150,14.45353645,3775.1,3775.0,1e-08]
[1753878961385,5.64991917,3773.7,3773.6,0.001]
[1753878961554,9.92491917,3773.7,3773.6,0.001]
[1753878961880,11.66851917,3773.7,3773.6,0.001]
[1753878962454,3.8193,3773.7,3773.6,0.001]
[1753878962778,4.274,3773.7,3773.6,0.001]
[1753878963478,6.92391917,3773.7,3773.6,0.001]
[1753878963676,4.274,3773.7,3773.6,0.001]
[1753878964081,0.7567,3774.1,3773.6,0.001]
[1753878964285,4.274,3774.0,3773.6,0.7741]
[1753878964445,6.366,3774.3,3773.6,0.7741]
[1753878964446,4.274,3773.9,3773.8,2.64984895]
[1753878964645,4.274,3773.9,3773.8,1.3661]
[1753878964969,4.274,3773.9,3773.8,4.01594895]
[1753878965476,4.274,3774.0,3773.9,0.55]
[1753878965681,4.274,3774.0,3773.9,3.97285957]
[1753878965982,0.7934,3775.1,3774.2,2.64956628]
[1753878966185,0.14846649,3775.0,3774.4,2.64941949]
[1753878966482,4.273,3774.9,3774.4,3.10141949]
[1753878966805,0.65104845,3775.6,3774.7,3.19921715]
[1753878966806,0.452,3775.6,3774.7,3.19921715]
[1753878967011,0.452,3775.6,3774.4,0.57509662]
[1753878967012,4.91637405,3775.5,3774.4,0.57509662]
[1753878967300,4.91637405,3775.5,3773.9,0.70091335]
[1753878967301,2.64894472,3775.1,3774.1,3.19962766]
[1753878967503,3.0,3774.9,3774.0,0.043]
[1753878967668,4.273,3774.8,3773.7,0.043]
[1753878967869,2.64934823,3774.6,3773.7,0.043]
[1753878968079,4.273,3774.5,3773.7,0.043]
[1753878968284,4.273,3774.5,3773.7,2.69284945]
[1753878968678,0.7634,3774.6,3773.7,2.69284945]
[1753878968679,0.7634,3775.0,3774.1,2.64963562]
[1753878968883,3.0,3774.8,3773.9,2.64973344]
[1753878969077,3.0,3774.8,3773.9,0.66667464]
[1753878969400,4.272,3774.7,3774.0,3.13975448]
[1753878969606,4.272,3774.7,3774.1,2.64963773]
[1753878969967,0.7634,3775.0,3774.0,0.4901]
[1753878970167,6.92112182,3774.9,3774.0,3.13980348]
[1753878970502,2.64922454,3774.7,3773.8,2.64980006]
[1753878970664,2.64934518,3774.6,3773.7,0.043]
[1753878970869,4.272,3774.5,3773.7,0.043]
[1753878971069,6.92136583,3774.5,3773.7,0.043]
[1753878971802,2.64942973,3774.4,3773.7,0.043]
[1753878972007,3.14322772,3774.4,3773.6,0.001]
[1753878972299,2.64961469,3774.2,3773.6,0.001]
[1753878972506,4.271,3774.1,3773.6,0.001]
[1753878972700,4.271,3774.0,3773.7,3.19991841]
[1753878973002,3.0,3774.7,3773.9,2.64972845]
[1753878973306,6.4124115,3775.0,3774.2,2.6925515]
[1753878973489,3.7634,3775.0,3774.4,2.64942617]
[1753878973690,4.271,3774.9,3774.2,0.043]
[1753878973897,2.64914697,3774.8,3774.2,0.043]
[1753878974198,2.64914697,3774.8,3774.0,2.64966491]
[1753878974199,0.4938,3774.8,3774.0,2.64966491]
[1753878974418,0.4938,3774.8,3774.2,2.64956098]
[1753878974580,4.7109,3774.9,3774.0,2.64970853]
[1753878974581,4.27,3774.7,3774.3,2.64947453]
[1753878975024,1.2358,3775.3,3774.5,0.043]
[1753878975201,4.41875136,3775.2,3774.5,2.69233286]
[1753878975511,4.41875136,3775.1,3774.5,0.043]
[1753878975712,4.27,3775.0,3774.5,0.043]
[1753878975939,0.14878867,3774.9,3774.5,0.043]
[1753878976234,0.14879839,3774.8,3774.5,0.043]
[1753878976433,0.95483011,3774.7,3774.0,0.55]
[1753878976597,1.33054345,3774.6,3773.9,0.043]
[1753878976826,2.64943715,3774.4,3773.9,0.043]
[1753878977152,0.14879839,3774.3,3773.9,0.043]
[1753878977360,2.79831339,3774.3,3773.9,0.043]
[1753878977504,4.269,3774.5,3773.9,0.043]
[1753878977505,0.14879839,3774.2,3773.9,0.043]
[1753878977705,4.269,3774.1,3773.9,0.5331]
[1753878977904,4.269,3774.0,3773.9,3.18281441]
[1753878978627,2.64936068,3774.5,3773.9,0.043]
[1753878978861,4.269,3774.4,3773.9,0.043]
[1753878979349,5.20647851,3774.4,3773.9,0.043]
[1753878979520,4.76657851,3774.4,3773.9,0.043]
[1753878979726,0.9337,3774.3,3773.9,0.043]
[1753878979925,0.4399,3774.3,3773.9,0.043]
[1753878980949,3.58319957,3774.3,3773.9,0.043]
[1753878981122,2.64958367,3774.2,3773.7,0.001]
[1753878981330,0.9337,3774.2,3773.7,0.001]
[1753878981530,2.64984895,3773.8,3773.7,0.001]
[1753878981772,6.91684895,3773.8,3773.7,0.001]
[1753878981930,7.85054895,3773.8,3773.7,0.001]
[1753878982830,10.85054895,3773.8,3773.7,0.001]
[1753878983030,10.85054895,3773.8,3773.1,0.04]
[1753878983031,2.65027032,3773.2,3773.1,0.04]
[1753878983235,10.73937032,3773.2,3773.1,0.04]
[1753878983443,11.67307032,3773.2,3773.1,0.04]
[1753878984325,11.67307032,3773.2,3773.1,1e-08]
[1753878984526,3.46286209,3772.5,3772.4,0.1]
[1753878984727,11.2763547,3772.5,3772.4,0.1]
[1753878985091,12.2100547,3772.5,3772.4,0.1]
[1753878985802,7.9440547,3772.5,3772.4,0.1]
[1753878985951,6.0128,3772.5,3772.4,0.1]
[1753878986284,4.39656209,3772.5,3772.4,0.1]
[1753878986435,0.8121,3772.5,3772.4,0.1]
[1753878986766,7.85046209,3772.5,3772.4,0.1]
[1753878986986,10.85046209,3772.5,3772.4,0.1]
[1753878987191,12.10473975,3772.5,3772.4,0.1]
[1753878987368,12.10473975,3772.5,3772.4,0.05329912]
[1753878988459,7.83873975,3772.5,3772.4,0.05329912]
[1753878988631,12.10473975,3772.5,3772.4,0.05329912]
[1753878989037,7.83873975,3772.5,3772.4,0.05329912]
[1753878989370,12.46178675,3772.5,3772.4,0.05329912]
[1753878989929,5.54502466,3772.5,3772.4,0.05329912]
[1753878990131,0.4938,3772.5,3772.4,0.05329912]
[1753878990337,4.7588,3772.5,3772.4,0.05329912]
[1753878990567,0.4938,3772.5,3772.4,2.70413148]
[1753878990869,4.265,3772.5,3772.4,3.51533148]
[1753878991271,4.265,3772.5,3772.4,0.54339912]
[1753878991569,4.265,3772.5,3772.4,3.19423148]
[1753878991771,4.265,3772.5,3772.4,4.14285178]
[1753878992145,4.265,3772.5,3772.4,4.69285178]
[1753878992351,4.265,3772.5,3772.4,2.04201942]
[1753878992558,4.265,3772.5,3772.4,1.49201942]
[1753878992758,4.265,3772.5,3772.4,4.14285178]
[1753878993075,4.265,3772.5,3772.4,0.09629912]
[1753878993279,4.265,3772.5,3772.4,0.05329912]
[1753878994777,7.84946209,3772.5,3772.4,0.05329912]
[1753878994999,12.40469009,3772.5,3772.4,0.05329912]
[1753878995677,12.40369009,3772.5,3772.4,0.05329912]
[1753878995843,13.90912656,3772.5,3772.4,0.05329912]
[1753878997501,2.65111346,3772.0,3771.9,0.001]
[1753878997665,6.91411346,3772.0,3771.9,0.001]
[1753878998199,7.84781346,3772.0,3771.9,0.001]
[1753878998407,8.89769758,3772.0,3771.9,0.001]
[1753878998749,4.63469758,3772.0,3771.9,0.001]
[1753878998996,8.89769758,3772.0,3771.9,0.001]
[1753878999678,7.96399758,3772.0,3771.9,0.001]
[1753878999847,2.65111346,3772.0,3771.9,0.001]
[1753879000043,6.91411346,3772.0,3771.9,0.001]
[1753879000586,7.85011346,3772.0,3771.9,0.001]
[1753879001404,11.66261346,3772.0,3771.9,0.001]
[1753879003092,7.39961346,3772.0,3771.9,0.001]
[1753879003301,11.66161346,3772.0,3771.9,0.001]
[1753879003590,13.09287758,3772.0,3771.9,0.001]
[1753879004294,5.65139463,3771.6,3771.5,0.001]
[1753879004458,9.91239463,3771.6,3771.5,0.001]
[1753879004665,11.65649463,3771.6,3771.5,0.001]
[1753879004888,11.76278063,3771.6,3771.5,0.001]
[1753879005195,13.45608992,3771.6,3771.5,0.001]
[1753879005904,9.19508992,3771.6,3771.5,0.001]
[1753879006106,12.52008992,3771.6,3771.5,0.001]
[1753879006262,13.45608992,3771.6,3771.5,0.001]
[1753879007309,4.79959529,3771.6,3771.5,0.001]
[1753879007463,10.01868063,3771.6,3771.5,0.001]
[1753879007989,6.58739463,3771.6,3771.5,0.001]
[1753879008166,11.33779463,3771.6,3771.5,0.001]
[1753879008782,12.11939463,3771.6,3771.5,0.001]
[1753879008980,13.79353599,3771.6,3771.5,0.001]
[1753879010995,9.53353599,3771.6,3771.5,0.001]
[1753879011194,12.85653599,3771.6,3771.5,0.001]
[1753879011585,13.79253599,3771.6,3771.5,0.001]
[1753879011978,13.79253599,3771.6,3771.5,1e-08]
[1753879013467,13.79153599,3771.6,3771.5,1e-08]
[1753879013670,14.4348842,3771.6,3771.5,1e-08]
[1753879013867,14.4348842,3771.6,3771.1,1e-08]
[1753879014072,6.43327585,3771.2,3771.1,1e-08]
[1753879014335,10.69127585,3771.2,3771.1,1e-08]
[1753879014798,11.62727585,3771.2,3771.1,1e-08]
[1753879015308,7.36927585,3771.2,3771.1,1e-08]
[1753879015894,10.69127585,3771.2,3771.1,1e-08]
[1753879016210,0.68747438,3771.6,3771.1,0.45040001]
[1753879016400,6.90852265,3771.5,3771.1,1e-08]
[1753879016602,2.65151023,3771.5,3771.1,0.45040001]
[1753879016802,2.65167585,3771.2,3771.1,1e-08]
[1753879016996,10.55140973,3771.2,3771.1,1e-08]
[1753879017204,10.30420439,3771.2,3771.1,1e-08]
[1753879017791,7.66328119,3771.2,3771.1,1e-08]
[1753879018126,11.92028119,3771.2,3771.1,1e-08]
[1753879018327,13.41085848,3771.2,3771.1,1e-08]
[1753879018637,13.16365314,3771.2,3771.1,1e-08]
[1753879019825,12.22765314,3771.2,3771.1,1e-08]
[1753879020014,8.21757699,3771.2,3771.1,1e-08]
[1753879020214,5.65167585,3771.2,3771.1,1e-08]
[1753879020613,5.65167585,3771.2,3771.1,0.45040001]
[1753879020614,6.90767585,3771.2,3771.1,0.45040001]
[1753879020842,6.90767585,3771.2,3771.1,1e-08]
[1753879021291,2.8485011,3771.6,3771.1,1e-08]
[1753879021292,0.19707438,3771.6,3771.1,1e-08]
[1753879021491,2.65167585,3771.2,3771.1,1e-08]
[1753879021695,9.90767585,3771.2,3771.1,1e-08]
[1753879021983,11.59777585,3771.2,3771.1,1e-08]
[1753879022944,11.99216287,3771.2,3771.1,1e-08]
[1753879023094,11.59677585,3771.2,3771.1,1e-08]
[1753879023313,13.26881504,3771.2,3771.1,1e-08]
[1753879023858,13.41712512,3771.2,3771.1,1e-08]
[1753879025058,12.48012512,3771.2,3771.1,1e-08]
[1753879025753,12.4801847,3771.2,3771.1,1e-08]
[1753879026075,13.4161847,3771.2,3771.1,1e-08]
[1753879026421,13.02060696,3771.2,3771.1,1e-08]
[1753879026991,12.08460696,3771.2,3771.1,1e-08]
[1753879027760,13.02060696,3771.2,3771.1,1e-08]
[1753879027917,12.08460696,3771.2,3771.1,1e-08]
[1753879028660,13.02060696,3771.2,3771.1,1e-08]
[1753879029218,13.01646469,3771.2,3771.1,1e-08]
[1753879029415,2.65195714,3770.8,3770.7,1e-08]
[1753879029659,11.86849317,3770.8,3770.7,1e-08]
[1753879029953,12.75999317,3770.8,3770.7,1e-08]
[1753879030317,10.84163789,3770.8,3770.7,1e-08]
[1753879030736,6.04804559,3770.8,3770.7,1e-08]
[1753879030918,10.15151242,3770.8,3770.7,1e-08]
[1753879031119,10.1516146,3770.8,3770.7,1e-08]
[1753879031744,0.24765746,3770.8,3770.7,0.48720001]
[1753879031920,0.24765746,3770.8,3770.7,0.80830001]
[1753879032117,4.252,3770.8,3770.7,0.80830001]
[1753879032321,4.49965746,3770.8,3770.7,0.80830001]
[1753879032824,0.24765746,3770.8,3770.7,0.85130001]
[1753879033049,4.49965746,3770.8,3770.7,0.85130001]
[1753879033418,3.43030825,3771.8,3770.7,0.85130001]
[1753879033721,3.0,3771.6,3770.8,0.8083]
[1753879033934,4.89527225,3771.5,3770.9,0.8083]
[1753879034166,0.64427225,3771.4,3770.9,0.3211]
[1753879034363,4.64747523,3771.3,3771.0,0.4872]
[1753879034524,4.49879702,3771.2,3771.1,0.3641]
[1753879034725,0.24779702,3771.2,3771.1,3.50304617]
[1753879035047,0.001,3771.9,3771.2,0.043]
[1753879035048,0.24785988,3771.8,3771.2,0.043]
[1753879035249,0.001,3771.9,3771.2,0.043]
[1753879035250,4.89559251,3771.7,3771.6,3.24439463]
[1753879035452,0.39667237,3771.7,3771.6,4.05269463]
[1753879035636,0.39667237,3771.7,3771.6,4.07920857]
[1753879035837,0.24792023,3771.7,3771.6,4.05269463]
[1753879036164,0.001,3771.9,3771.6,4.05269463]
[1753879036165,0.001,3771.9,3771.8,3.24425404]
[1753879036366,0.001,3772.3,3772.2,3.2439729]
[1753879036525,0.24891985,3772.3,3772.2,3.27048262]
[1753879036730,0.49683987,3772.3,3772.2,4.0522729]
[1753879036926,0.64559188,3772.3,3772.2,4.0522729]
[1753879037326,0.64559188,3772.3,3772.2,4.07878262]
[1753879037528,0.64559188,3772.3,3772.2,4.75176691]
[1753879037827,0.001,3772.3,3772.2,7.75176691]
[1753879038062,0.001,3772.3,3772.2,7.72525719]
[1753879038477,0.001,3772.3,3772.2,7.40415719]
[1753879038780,0.001,3772.3,3772.2,7.72525719]
[1753879040256,0.04,3772.9,3772.2,7.72525719]
[1753879040257,0.04,3772.9,3772.8,6.24355131]
[1753879040467,0.28771212,3772.9,3772.8,10.45656218]
[1753879040783,0.04,3772.9,3772.8,11.26486218]
[1753879044449,0.001,3773.3,3773.2,3.20027032]
[1753879044646,0.001,3773.3,3773.2,3.24327032]
[1753879044875,0.001,3773.3,3773.2,3.73047032]
[1753879045055,0.001,3773.3,3773.2,5.09021106]
[1753879045257,0.001,3773.3,3773.2,5.43781376]
[1753879045481,0.001,3773.3,3773.2,5.41131106]
[1753879047580,0.001,3773.3,3773.2,8.41131106]
[1753879048586,0.4511,3774.7,3774.3,0.043]
[1753879048760,0.4511,3774.7,3774.4,2.64942772]
[1753879048954,0.8915,3774.6,3774.3,2.69248039]
[1753879049157,0.8915,3774.6,3774.4,2.64942278]
[1753879049351,0.8915,3774.6,3774.5,2.64935753]
[1753879049859,0.8915,3774.6,3774.4,2.64941159]
[1753879050058,0.8915,3774.6,3774.4,2.64942352]
[1753879050283,0.8915,3774.6,3774.5,2.64935753]
[1753879050493,0.8915,3774.6,3774.4,2.64941465]
[1753879050894,0.002,3774.8,3774.3,2.69247504]
[1753879051277,0.8915,3774.7,3774.3,2.69247504]
[1753879051582,0.8915,3774.6,3774.3,2.69247504]
[1753879051765,0.4511,3774.5,3774.3,2.69247504]
[1753879051953,0.4511,3774.5,3774.4,2.64942772]
[1753879052592,0.002,3774.8,3774.4,2.6494091]
[1753879052794,0.002,3774.8,3774.2,0.043]
[1753879052795,0.4424,3774.8,3774.3,2.64947513]
[1753879052994,0.8915,3774.7,3773.9,2.6927232]
[1753879053167,0.4404,3774.7,3774.2,2.64955921]
[1753879053374,0.8915,3774.6,3774.2,2.64955921]
[1753879053795,0.002,3774.8,3774.2,2.64955921]
[1753879054101,0.002,3774.8,3774.0,3.34327349]
[1753879054102,0.8915,3774.5,3774.3,2.64949709]
[1753879054267,0.002,3774.8,3774.4,2.64942772]
[1753879054794,0.8915,3774.7,3774.4,2.64942772]
[1753879055094,0.8915,3774.7,3774.3,2.64947152]
[1753879055292,0.4511,3774.6,3774.4,2.64941259]
[1753879055794,0.002,3774.8,3774.7,2.64921715]
[1753879056661,0.8935,3774.8,3774.4,0.52989733]
[1753879056890,0.8935,3774.8,3774.3,0.043]
[1753879056891,1.6656,3774.7,3773.4,4.282]
[1753879057095,5.30126,3774.6,3773.6,2.64998041]
[1753879057268,3.54088393,3774.5,3773.5,2.65003244]
[1753879057597,0.4511,3774.4,3773.8,2.64978618]
[1753879057796,0.4511,3774.4,3773.8,0.02649848]
[1753879058003,0.4511,3774.4,3773.8,0.88241792]
[1753879058206,0.4511,3774.4,3774.1,2.64963041]
[1753879058402,0.4511,3774.4,3774.3,2.64949792]
[1753879059108,0.8915,3774.4,3773.0,4.84543633]
[1753879059400,0.7674,3773.9,3773.3,2.65018386]
[1753879059761,0.4791,3773.8,3773.3,2.65018386]
[1753879060032,3.57554508,3773.7,3773.0,2.69338276]
[1753879060175,0.4791,3773.6,3773.0,0.043]
[1753879060367,0.4791,3773.6,3773.3,2.65019814]
[1753879060587,0.4791,3773.6,3773.4,2.65012959]
[1753879060768,0.4791,3773.6,3773.2,2.65027032]
[1753879060968,0.4465,3773.7,3773.3,3.45904426]
[1753879061169,0.9256,3773.7,3773.3,0.80887067]
[1753879061398,0.4791,3773.6,3773.2,2.6502452]
[1753879061605,0.7674,3773.9,3773.2,2.6502452]
[1753879061782,0.9256,3773.5,3773.2,2.6502452]
[1753879062000,0.9256,3773.5,3773.3,2.65018782]
[1753879062180,0.9256,3773.5,3773.2,2.65026585]
[1753879062382,0.9256,3773.5,3773.0,4.88843633]
[1753879062603,0.9256,3773.4,3772.6,0.043]
[1753879062770,0.7782,3773.3,3772.3,0.043]
[1753879062977,5.9408,3773.3,3772.2,0.56511771]
[1753879063174,5.9408,3773.3,3772.3,1.48766442]
[1753879063406,5.9408,3773.3,3772.8,2.65049627]
[1753879063706,0.4791,3773.2,3772.6,2.65069183]
[1753879063892,0.9256,3773.2,3772.5,4.84543633]
[1753879064211,5.0152,3773.3,3772.6,0.55]
[1753879064523,4.237,3773.3,3772.9,2.65048106]
[1753879064917,4.237,3773.3,3773.2,2.65027032]
[1753879065209,4.237,3773.3,3773.2,3.20027032]
[1753879065384,4.236,3773.8,3773.2,2.65027032]
[1753879065568,4.236,3773.8,3773.3,3.39974346]
[1753879065774,5.1616,3773.8,3773.4,2.65011884]
[1753879066331,0.9256,3773.7,3772.8,0.55]
[1753879066474,0.9256,3773.7,3772.5,5.47095679]
[1753879066475,0.9256,3773.6,3772.9,2.65043571]
[1753879066677,0.8201,3773.4,3772.6,0.55]
[1753879066926,0.8201,3773.4,3772.7,2.65061964]
[1753879067083,0.9256,3773.3,3772.7,2.65061964]
[1753879067283,0.9256,3773.3,3772.6,1.00173008]
[1753879067514,0.9256,3773.3,3773.0,2.650398]
[1753879067711,0.8201,3773.4,3772.8,2.65052863]
[1753879067712,0.9256,3773.2,3772.8,2.65052863]
[1753879067912,0.8201,3773.4,3772.6,1.00173008]
[1753879067913,0.9256,3773.1,3772.6,1.00173008]
[1753879068129,0.8201,3773.4,3772.4,0.043]
[1753879068130,0.9256,3773.0,3772.4,0.043]
[1753879068312,0.9256,3773.0,3772.8,2.65048774]
[1753879068518,0.9256,3773.0,3772.6,2.6506712]
[1753879068716,0.4791,3773.0,3772.8,2.65049298]
[1753879068932,4.235,3773.3,3772.9,2.65045563]
[1753879069132,0.8144,3773.7,3773.3,2.65019397]
[1753879069430,4.235,3773.6,3773.0,4.84543633]
[1753879069646,4.235,3773.6,3773.4,2.65007924]
[1753879069921,4.235,3773.6,3773.5,2.65005962]
[1753879070129,4.235,3773.6,3773.1,0.55]
[1753879070130,1.742,3774.0,3773.7,2.64985586]
[1753879070440,4.234,3773.9,3773.8,2.64983315]
[1753879070786,0.9276,3774.0,3773.9,3.19977874]
[1753879070787,0.002,3774.0,3773.9,3.19977874]
[1753879070994,0.002,3774.0,3773.9,3.22627652]
[1753879071400,0.002,3774.0,3773.8,0.52998057]
[1753879071598,0.9276,3774.0,3773.7,2.64985619]
[1753879071789,0.002,3774.0,3773.5,0.55]
[1753879072110,0.002,3774.0,3773.5,0.57650059]
[1753879072315,0.002,3774.0,3773.9,2.64977874]
[1753879072820,0.002,3774.0,3773.9,3.22627652]
[1753879073422,0.002,3774.0,3773.9,3.26927652]
[1753879073613,0.002,3774.0,3773.9,3.76137652]
[1753879074624,0.002,3774.0,3773.9,3.26927652]
[1753879074798,0.002,3774.0,3773.9,3.9585053]
[1753879075199,1e-08,3774.0,3773.9,12.0047053]
[1753879075436,1e-08,3774.0,3773.9,11.97820752]
[1753879077712,1e-08,3774.0,3773.9,7.42410752]
[1753879078045,1e-08,3774.0,3773.9,11.65510752]
[1753879079439,1e-08,3774.0,3773.9,11.16300752]
[1753879080114,1e-08,3774.0,3773.9,11.97620752]
[1753879080725,0.002,3774.6,3774.5,6.19935753]
[1753879080931,0.002,3774.8,3774.7,3.19921715]
[1753879081238,0.002,3774.8,3774.7,10.42921715]
[1753879081439,0.002,3774.8,3774.7,10.47221715]
[1753879081646,0.002,3774.8,3774.7,11.28541715]
[1753879081847,0.002,3774.8,3774.7,13.16343825]
[1753879083940,0.002,3774.8,3774.7,12.35023825]
[1753879084502,0.002,3774.8,3774.7,12.84233825]
[1753879084700,0.002,3774.8,3774.7,12.35023825]
[1753879085007,0.002,3774.8,3774.7,8.12023825]
[1753879085318,0.002,3774.8,3774.7,12.34823825]
[1753879086342,0.04,3774.9,3774.8,6.19914697]
[1753879086571,0.04,3774.9,3774.8,9.30451158]
[1753879086844,0.002,3775.2,3775.1,3.19893645]
[1753879087141,0.002,3775.2,3775.1,12.29786214]
[1753879087346,0.002,3775.2,3775.1,12.27137278]
[1753879087659,5.9733,3776.3,3775.8,3.19844536]
[1753879087941,5.9733,3776.3,3775.8,3.81392714]
[1753879088100,1.7463,3776.3,3775.8,3.81392714]
[1753879088302,0.9256,3776.3,3775.8,3.81392714]
[1753879088499,0.9256,3776.3,3775.8,3.78744269]
[1753879088750,0.4811,3776.6,3775.8,3.81392714]
[1753879088947,0.002,3776.6,3776.5,3.19795445]
[1753879089153,0.002,3776.6,3776.5,7.42395445]
[1753879089646,0.002,3776.6,3776.5,8.92264532]
[1753879091153,0.9688,3776.6,3776.5,8.37164532]
[1753879091306,0.9688,3776.6,3776.5,6.87295445]
[1753879091738,0.002,3776.6,3776.5,6.87295445]
[1753879092050,0.002,3776.6,3776.5,7.46595445]
[1753879092814,0.002,3776.6,3776.5,7.91615445]
[1753879093253,0.002,3776.6,3776.5,8.23725445]